bitfinex/quotes_SOLUSD_20251018
["timestamp","ask_amount","ask_price","bid_price","bid_amount"]
[1760809616505,102.1,185.46,185.45,9.56514926]
[1760809616687,102.1,185.46,185.45,6.10228902]
[1760809617884,102.1,185.46,185.45,9.56514926]
[1760809618392,3.46286024,185.5,185.45,9.56514926]
[1760809618590,0.65,185.49,185.45,9.56514926]
[1760809619289,3.46286024,185.5,185.45,9.56514926]
[1760809619493,3.46286024,185.5,185.46,6.10175635]
[1760809619694,4.11286024,185.5,185.46,6.10175635]
[1760809620004,0.65,185.49,185.46,6.10175635]
[1760809620204,0.65,185.49,185.46,5.39175635]
[1760809620404,102.75,185.52,185.48,3.46286024]
[1760809620582,102.75,185.52,185.48,0.71]
[1760809620583,102.1,185.51,185.48,0.71]
[1760809621492,102.1,185.51,185.49,0.71]
[1760809621806,106.21286024,185.5,185.43,5.39282135]
[1760809622111,3.46286024,185.46,185.43,5.39282135]
[1760809622303,4.11286024,185.45,185.41,5.39345234]
[1760809622487,0.65,185.44,185.41,5.39345234]
[1760809624394,3.46286024,185.45,185.41,6.10345234]
[1760809624595,4.11286024,185.45,185.41,6.10345234]
[1760809625095,0.65,185.45,185.41,6.10345234]
[1760809625492,3.46286024,185.46,185.41,5.39345234]
[1760809625794,3.46286024,185.46,185.42,0.71]
[1760809626207,4.14286024,185.46,185.42,0.71]
[1760809627116,3.46286024,185.46,185.42,0.71]
[1760809627283,3.46286024,185.46,185.43,0.7]
[1760809627899,4.14286024,185.47,185.43,6.09278336]
[1760809628084,105.56286024,185.49,185.44,0.7]
[1760809628285,4.14286024,185.48,185.44,0.7]
[1760809628587,7.77677097,185.48,185.43,5.39278336]
[1760809628799,7.77677097,185.48,185.43,6.09278336]
[1760809629009,7.77677097,185.48,185.44,0.7]
[1760809629397,4.14286024,185.47,185.43,5.39278336]
[1760809629586,4.14286024,185.47,185.43,6.09278336]
[1760809630001,3.46286024,185.47,185.44,0.7]
[1760809630305,7.09677097,185.48,185.44,0.7]
[1760809631012,7.77677097,185.48,185.44,6.09247146]
[1760809632009,4.14286024,185.48,185.44,6.09247146]
[1760809632214,7.77914865,185.48,185.44,6.09247146]
[1760809633094,102.1,185.47,185.44,6.09247146]
[1760809634812,102.1,185.47,185.45,0.72]
[1760809635213,102.1,185.47,185.44,5.39247146]
[1760809635816,102.1,185.47,185.44,6.11247146]
[1760809636505,102.1,185.47,185.45,0.72]
[1760809636702,102.1,185.47,185.45,4.18286024]
[1760809636912,102.1,185.47,185.46,0.72]
[1760809637913,102.1,185.47,185.46,6.11199827]
[1760809638597,102.1,185.47,185.46,5.39199827]
[1760809641200,102.1,185.47,185.46,6.11199827]
[1760809641396,102.1,185.47,185.46,5.39199827]
[1760809643020,102.1,185.52,185.46,9.57485851]
[1760809643209,102.1,185.51,185.48,3.46286024]
[1760809643409,102.1,185.51,185.48,4.18286024]
[1760809644614,102.1,185.51,185.48,9.57414485]
[1760809645618,102.1,185.51,185.49,9.57384638]
[1760809646225,102.1,185.51,185.5,4.18286024]
[1760809646609,102.1,185.51,185.5,3.46286024]
[1760809647325,102.1,185.51,185.5,8.85369581]
[1760809647523,102.1,185.51,185.5,9.57369581]
[1760809647730,3.46286024,185.56,185.5,9.57369581]
[1760809647917,7.81381954,185.56,185.51,4.18286024]
[1760809648529,102.82,185.57,185.53,3.46286024]
[1760809648826,102.82,185.57,185.53,4.18286024]
[1760809649028,0.72,185.56,185.53,3.46286024]
[1760809649225,102.1,185.57,185.53,4.18286024]
[1760809649430,102.1,185.57,185.53,9.57256347]
[1760809649613,102.1,185.57,185.54,0.72]
[1760809650519,102.1,185.57,185.54,6.10965917]
[1760809651920,102.1,185.57,185.54,9.57251941]
[1760809652231,22.88,185.61,185.54,9.57251941]
[1760809652232,3.46286024,185.6,185.54,9.57251941]
[1760809652424,3.46286024,185.57,185.52,5.38996634]
[1760809652615,0.72,185.56,185.52,6.10996634]
[1760809654026,0.72,185.56,185.52,9.57282658]
[1760809655223,0.72,185.56,185.53,6.10975576]
[1760809655526,0.72,185.56,185.53,5.38975576]
[1760809655923,0.72,185.56,185.53,6.10975576]
[1760809656318,4.18286024,185.57,185.53,6.10975576]
[1760809657320,4.18286024,185.57,185.53,9.572616]
[1760809657321,0.72,185.57,185.53,9.572616]
[1760809658325,102.1,185.58,185.54,4.18286024]
[1760809658718,102.82,185.58,185.54,4.18286024]
[1760809659033,102.1,185.58,185.55,0.72]
[1760809661115,102.82,185.58,185.54,8.85226236]
[1760809661334,102.82,185.58,185.54,9.57226236]
[1760809664815,102.82,185.58,185.54,6.10940212]
[1760809665020,106.28286024,185.58,185.54,6.10940212]
[1760809665641,106.28286024,185.58,185.47,0.66]
[1760809665642,3.46286024,185.55,185.47,0.66]
[1760809665825,3.46286024,185.53,185.48,3.46286024]
[1760809666024,0.7,185.52,185.48,23.54]
[1760809666233,0.7,185.52,185.47,3.46286024]
[1760809666234,0.7,185.51,185.47,3.46286024]
[1760809666424,0.7,185.51,185.47,4.12286024]
[1760809667332,0.7,185.51,185.48,5.39141686]
[1760809667841,0.7,185.51,185.48,6.05141686]
[1760809668643,4.16286024,185.52,185.48,6.05141686]
[1760809669847,0.7,185.52,185.48,6.05141686]
[1760809671537,4.16286024,185.52,185.48,6.05141686]
[1760809671930,0.7,185.54,185.49,0.66]
[1760809672254,102.1,185.55,185.5,3.46286024]
[1760809672437,102.1,185.54,185.51,0.66]
[1760809676352,105.56286024,185.54,185.51,0.66]
[1760809677539,102.1,185.54,185.51,0.66]
[1760809678053,102.1,185.54,185.53,3.46286024]
[1760809678229,102.1,185.54,185.53,4.12286024]
[1760809679244,3.46286024,185.59,185.53,4.12286024]
[1760809679245,3.46286024,185.59,185.53,9.51261465]
[1760809679445,4.16286024,185.6,185.54,4.12286024]
[1760809679634,0.7,185.59,185.54,4.12286024]
[1760809679834,0.7,185.59,185.55,0.66]
[1760809680032,4.16286024,185.59,185.55,0.66]
[1760809680650,0.7,185.59,185.55,0.66]
[1760809680832,4.16286024,185.59,185.55,0.66]
[1760809681034,4.16286024,185.59,185.55,6.0493093]
[1760809681234,3.46286024,185.58,185.55,0.66]
[1760809681630,3.46286024,185.58,185.55,6.04929163]
[1760809682331,3.46286024,185.58,185.55,5.38929163]
[1760809682543,4.16286024,185.58,185.55,5.38929163]
[1760809682751,4.16286024,185.58,185.54,5.38967078]
[1760809682949,3.46286024,185.55,185.5,4.12286024]
[1760809683162,0.7,185.54,185.5,4.12286024]
[1760809683367,3.46286024,185.54,185.49,22.33180195]
[1760809683537,0.7,185.53,185.49,22.33180195]
[1760809683739,3.46286024,185.54,185.5,0.66]
[1760809684057,3.46286024,185.56,185.51,3.46286024]
[1760809684272,4.16286024,185.56,185.52,0.66]
[1760809685555,4.16286024,185.56,185.51,8.85317537]
[1760809685556,0.7,185.55,185.51,6.05031513]
[1760809685862,4.16286024,185.54,185.5,5.39078597]
[1760809686050,0.71,185.53,185.5,5.39078597]
[1760809686964,4.17286024,185.53,185.49,0.66]
[1760809687164,4.17286024,185.52,185.47,6.05168494]
[1760809687459,4.17286024,185.51,185.47,6.05168494]
[1760809688039,3.46286024,185.5,185.47,6.05168494]
[1760809688243,3.46286024,185.48,185.44,5.39233435]
[1760809688437,4.17286024,185.48,185.44,6.05233435]
[1760809689562,4.17286024,185.48,185.43,8.85566942]
[1760809689762,4.17286024,185.48,185.43,9.51566942]
[1760809690551,3.46286024,185.47,185.43,6.05280918]
[1760809690952,3.46286024,185.47,185.44,0.66]
[1760809691853,4.17286024,185.47,185.42,6.05316147]
[1760809692051,0.71,185.46,185.42,6.05316147]
[1760809692453,3.46286024,185.47,185.43,0.66]
[1760809692665,4.17286024,185.47,185.43,0.66]
[1760809692865,0.71,185.47,185.43,0.66]
[1760809693065,3.46286024,185.47,185.44,0.66]
[1760809693372,3.46286024,185.48,185.45,0.69]
[1760809693569,4.13286024,185.48,185.43,0.69]
[1760809693769,4.13286024,185.48,185.44,0.69]
[1760809694575,3.46286024,185.48,185.45,0.69]
[1760809696760,4.13286024,185.48,185.44,5.3925397]
[1760809696961,4.13286024,185.48,185.44,6.0825397]
[1760809697978,3.46286024,185.48,185.45,0.69]
[1760809699485,3.46286024,185.46,185.4,22.88]
[1760809699660,3.46286024,185.46,185.41,9.54631258]
[1760809699860,3.46286024,185.47,185.42,4.15286024]
[1760809700084,3.46286024,185.47,185.43,0.69]
[1760809700270,3.46286024,185.47,185.44,0.69]
[1760809701510,0.67,185.48,185.44,0.69]
[1760809701667,3.46286024,185.48,185.45,0.69]
[1760809701982,3.46286024,185.48,185.43,8.85565083]
[1760809701983,4.13286024,185.48,185.43,8.85565083]
[1760809702186,4.13286024,185.48,185.44,0.69]
[1760809704078,102.1,185.47,185.44,0.69]
[1760809704481,105.56286024,185.47,185.44,0.69]
[1760809706064,106.23286024,185.47,185.44,0.69]
[1760809706395,3.46286024,185.46,185.42,5.39314327]
[1760809706598,4.13286024,185.46,185.42,6.08314327]
[1760809706897,4.13286024,185.45,185.39,3.46286024]
[1760809707066,3.46286024,185.43,185.38,0.69]
[1760809707266,0.67,185.42,185.38,0.69]
[1760809707465,0.67,185.42,185.38,6.0842943]
[1760809708289,3.46286024,185.43,185.39,0.69]
[1760809708469,4.13286024,185.43,185.39,0.69]
[1760809708887,105.56286024,185.44,185.4,0.69]
[1760809709077,102.1,185.44,185.41,3.46286024]
[1760809709386,102.1,185.44,185.42,0.69]
[1760809709687,26.34286024,185.49,185.43,4.15286024]
[1760809709878,106.23286024,185.5,185.45,3.46286024]
[1760809710071,106.23286024,185.5,185.46,0.69]
[1760809710477,106.23286024,185.5,185.45,3.46286024]
[1760809710478,0.67,185.49,185.44,4.15286024]
[1760809710692,0.67,185.48,185.44,4.15286024]
[1760809710876,4.13286024,185.48,185.44,6.08255561]
[1760809711681,0.67,185.47,185.43,8.85566494]
[1760809711990,4.13286024,185.47,185.43,5.3928047]
[1760809712165,3.46286024,185.46,185.43,5.3928047]
[1760809712373,0.67,185.49,185.44,0.69]
[1760809712591,3.46286024,185.47,185.44,0.69]
[1760809712906,0.67,185.49,185.44,6.08252648]
[1760809713194,4.13286024,185.48,185.44,6.08252648]
[1760809713395,4.13286024,185.48,185.44,5.39252648]
[1760809713694,4.13286024,185.48,185.44,6.08252648]
[1760809713893,3.46286024,185.48,185.45,0.69]
[1760809717296,4.13286024,185.49,185.45,0.69]
[1760809717479,102.1,185.5,185.44,8.85538672]
[1760809717480,105.56286024,185.5,185.46,0.69]
[1760809717674,102.1,185.49,185.46,0.69]
[1760809718486,106.23286024,185.49,185.44,9.54535008]
[1760809718688,106.23286024,185.49,185.45,0.69]
[1760809720701,106.23286024,185.49,185.45,6.08204131]
[1760809721089,102.1,185.49,185.46,0.69]
[1760809721289,102.1,185.49,185.47,0.69]
[1760809721484,102.1,185.49,185.46,3.46286024]
[1760809721687,102.1,185.49,185.48,3.46286024]
[1760809721891,4.13286024,185.53,185.48,4.15286024]
[1760809722196,4.13286024,185.53,185.48,3.46286024]
[1760809722403,4.13286024,185.53,185.49,0.69]
[1760809726010,4.13286024,185.53,185.5,0.67]
[1760809726514,4.13286024,185.53,185.48,6.06129322]
[1760809726799,0.69,185.52,185.48,6.06129322]
[1760809727005,0.69,185.52,185.49,0.67]
[1760809727202,3.46286024,185.53,185.5,0.67]
[1760809727403,102.1,185.55,185.5,0.67]
[1760809727404,105.56286024,185.55,185.51,0.67]
[1760809727597,105.56286024,185.55,185.5,3.46286024]
[1760809727785,105.56286024,185.55,185.52,0.67]
[1760809727987,102.1,185.55,185.52,0.67]
[1760809728197,105.56286024,185.55,185.52,0.67]
[1760809728500,106.25286024,185.55,185.52,0.67]
[1760809729381,106.25286024,185.55,185.51,5.39040108]
[1760809729584,106.25286024,185.55,185.51,6.06040108]
[1760809731528,102.1,185.55,185.51,5.39040108]
[1760809731705,102.1,185.55,185.52,0.67]
[1760809732003,0.69,185.58,185.52,4.13286024]
[1760809732200,4.15286024,185.58,185.53,0.67]
[1760809732389,0.69,185.58,185.54,0.67]
[1760809733004,4.15286024,185.58,185.54,0.67]
[1760809733800,4.15286024,185.57,185.53,5.38967885]
[1760809733993,4.15286024,185.57,185.53,6.05967885]
[1760809735613,3.46286024,185.57,185.54,0.67]
[1760809737513,4.15286024,185.57,185.52,9.5230682]
[1760809737703,0.69,185.56,185.52,9.5230682]
[1760809737905,0.69,185.56,185.53,0.67]
[1760809738113,3.46286024,185.57,185.53,0.67]
[1760809738306,4.15286024,185.57,185.53,0.67]
[1760809738513,4.15286024,185.57,185.53,6.05987223]
[1760809741109,3.46286024,185.55,185.51,5.39029674]
[1760809741303,3.46286024,185.53,185.5,6.06076227]
[1760809741601,3.46286024,185.53,185.5,5.39076227]
[1760809741808,4.15286024,185.54,185.5,6.06076227]
[1760809743423,0.69,185.53,185.48,6.06141686]
[1760809743605,0.69,185.55,185.49,0.67]
[1760809743800,0.69,185.55,185.49,4.13286024]
[1760809744123,3.46286024,185.54,185.5,0.67]
[1760809744494,3.46286024,185.55,185.51,0.67]
[1760809744901,3.46286024,185.55,185.52,0.67]
[1760809746326,4.15286024,185.56,185.52,0.67]
[1760809747532,4.15286024,185.56,185.52,6.06020916]
[1760809749505,102.1,185.58,185.53,4.12286024]
[1760809749712,102.1,185.57,185.54,0.66]
[1760809750232,105.56286024,185.57,185.52,5.39020916]
[1760809750405,0.72,185.56,185.52,8.8530694]
[1760809750611,0.72,185.55,185.52,5.39020916]
[1760809750810,0.72,185.55,185.52,6.05020916]
[1760809751116,3.46286024,185.56,185.52,6.05020916]
[1760809751508,4.18286024,185.56,185.52,6.05020916]
[1760809751910,0.72,185.56,185.52,6.05020916]
[1760809752111,4.18286024,185.56,185.52,6.05020916]
[1760809752802,3.46286024,185.56,185.53,0.66]
[1760809753627,0.7,185.55,185.52,5.39020916]
[1760809754114,3.46286024,185.53,185.49,0.71]
[1760809754313,3.46286024,185.53,185.45,10.87647521]
[1760809754314,0.7,185.52,185.45,10.87647521]
[1760809754519,4.16286024,185.52,185.48,0.71]
[1760809754724,4.16286024,185.52,185.49,0.71]
[1760809754923,3.46286024,185.5,185.46,0.71]
[1760809755122,102.1,185.55,185.44,0.71]
[1760809755123,3.46286024,185.48,185.44,0.71]
[1760809755325,3.46286024,185.48,185.45,0.71]
[1760809756044,4.16286024,185.49,185.45,6.10227466]
[1760809756220,0.7,185.53,185.46,4.17286024]
[1760809756420,102.1,185.55,185.49,3.46286024]
[1760809756421,109.19032352,185.54,185.49,3.46286024]
[1760809756621,105.56286024,185.54,185.49,4.17286024]
[1760809756927,105.56286024,185.54,185.5,0.71]
[1760809757147,102.1,185.54,185.51,0.71]
[1760809757806,102.1,185.54,185.49,4.17286024]
[1760809758010,102.1,185.54,185.5,0.71]
[1760809758436,102.8,185.54,185.5,0.71]
[1760809758733,106.26286024,185.54,185.5,0.71]
[1760809758923,4.16286024,185.53,185.49,5.39087956]
[1760809759119,3.46286024,185.53,185.49,5.39087956]
[1760809759313,0.7,185.52,185.49,5.39087956]
[1760809759631,102.1,185.54,185.46,6.10199827]
[1760809759632,4.16286024,185.51,185.46,6.10199827]
[1760809759822,0.7,185.5,185.46,6.10199827]
[1760809760022,3.46286024,185.51,185.46,6.10199827]
[1760809760224,4.16286024,185.51,185.46,6.10199827]
[1760809760418,4.16286024,185.51,185.47,0.71]
[1760809760809,3.46286024,185.51,185.48,0.71]
[1760809761010,4.32924223,185.53,185.49,0.71]
[1760809761213,3.46286024,185.53,185.48,3.46286024]
[1760809761450,3.46286024,185.53,185.49,0.71]
[1760809761613,105.56286024,185.54,185.5,0.71]
[1760809761816,102.1,185.53,185.5,0.71]
[1760809764515,105.56286024,185.53,185.49,5.39095883]
[1760809764720,4.16286024,185.52,185.47,9.56429301]
[1760809764926,4.16286024,185.51,185.47,5.39143277]
[1760809765117,4.16286024,185.5,185.47,5.39143277]
[1760809765732,3.46286024,185.51,185.47,6.10143277]
[1760809765913,7.09721056,185.52,185.47,8.85429301]
[1760809766118,7.09721056,185.52,185.48,6.10137144]
[1760809766545,7.09721056,185.52,185.49,0.71]
[1760809766844,3.63435032,185.52,185.49,0.71]
[1760809767828,3.63435032,185.52,185.5,0.71]
[1760809768337,3.63435032,185.52,185.49,5.39102946]
[1760809768518,7.09721056,185.52,185.49,5.39102946]
[1760809768719,3.46286024,185.52,185.49,5.39102946]
[1760809769151,3.46286024,185.51,185.48,5.3913722]
[1760809769449,4.16286024,185.52,185.48,6.1013722]
[1760809770753,7.79757738,185.52,185.48,6.1013722]
[1760809770938,4.16286024,185.52,185.48,6.1013722]
[1760809772226,3.63471714,185.53,185.48,6.1013722]
[1760809772227,3.46286024,185.53,185.48,5.3913722]
[1760809772428,7.09757738,185.54,185.49,4.17286024]
[1760809772651,7.79757738,185.54,185.49,4.17286024]
[1760809772955,25.69857735,185.57,185.48,5.3913722]
[1760809772956,4.16286024,185.53,185.48,5.3913722]
[1760809773137,4.16286024,185.52,185.48,6.1013722]
[1760809776431,3.46286024,185.52,185.49,0.71]
[1760809777156,7.09757738,185.53,185.49,6.10106799]
[1760809777839,7.79757738,185.53,185.49,6.10106799]
[1760809778155,4.16286024,185.53,185.49,6.10106799]
[1760809778456,3.46286024,185.52,185.49,0.71]
[1760809779063,3.46286024,185.52,185.45,22.88]
[1760809779227,3.46286024,185.51,185.47,0.71]
[1760809779431,3.46286024,185.5,185.44,9.56544005]
[1760809779636,3.46286024,185.48,185.44,6.10257981]
[1760809779838,3.46286024,185.48,185.45,0.71]
[1760809780040,3.46286024,185.49,185.44,5.39257981]
[1760809780244,3.46286024,185.5,185.46,5.39199827]
[1760809780547,3.46286024,185.5,185.47,0.71]
[1760809781959,3.46286024,185.5,185.46,5.39199827]
[1760809782347,4.16286024,185.5,185.46,6.10199827]
[1760809782546,3.46286024,185.5,185.47,0.71]
[1760809784551,4.14286024,185.5,185.46,5.39199827]
[1760809784756,4.14286024,185.5,185.46,6.07199827]
[1760809785732,3.46286024,185.51,185.47,0.68]
[1760809785956,3.63471714,185.51,185.48,0.68]
[1760809786341,4.31471714,185.51,185.46,9.53485851]
[1760809786544,4.31471714,185.51,185.47,0.68]
[1760809788161,7.77757738,185.51,185.47,0.68]
[1760809788340,4.14286024,185.51,185.47,0.68]
[1760809789037,3.46286024,185.53,185.48,3.46286024]
[1760809789245,3.46286024,185.53,185.49,0.68]
[1760809789246,3.63471714,185.53,185.49,0.68]
[1760809789858,4.31471714,185.53,185.49,0.68]
[1760809791576,3.63471714,185.52,185.49,0.68]
[1760809791933,3.63471714,185.52,185.49,6.0711065]
[1760809792137,0.68,185.53,185.49,9.53396674]
[1760809792364,3.46286024,185.54,185.5,0.68]
[1760809792557,7.09757738,185.54,185.5,0.68]
[1760809792750,4.14286024,185.54,185.5,0.68]
[1760809793138,7.77757738,185.54,185.5,0.68]
[1760809793338,4.14286024,185.54,185.5,0.68]
[1760809793751,7.77757738,185.54,185.5,0.68]
[1760809793952,4.14286024,185.54,185.5,0.68]
[1760809794349,3.46286024,185.53,185.5,0.68]
[1760809795043,3.46286024,185.55,185.51,0.68]
[1760809795463,4.14286024,185.56,185.51,4.14286024]
[1760809795653,3.63594624,185.55,185.51,4.14286024]
[1760809795856,4.14286024,185.56,185.52,0.68]
[1760809796052,3.63594576,185.55,185.52,0.68]
[1760809796359,4.14286024,185.56,185.52,0.68]
[1760809796568,3.63598013,185.55,185.52,0.68]
[1760809796954,3.63598013,185.56,185.51,8.85334927]
[1760809797158,7.77839771,185.56,185.51,5.39048903]
[1760809797362,7.77839771,185.56,185.52,0.68]
[1760809797566,3.63566022,185.55,185.52,0.68]
[1760809800045,3.63566022,185.55,185.51,5.39048903]
[1760809800046,3.46286024,185.53,185.45,5.39205535]
[1760809800370,3.46286024,185.48,185.45,6.07205535]
[1760809800743,3.46286024,185.48,185.43,3.46286024]
[1760809800744,0.68,185.47,185.43,6.07263591]
[1760809800948,4.14286024,185.47,185.43,6.07263591]
[1760809801149,3.46286024,185.46,185.41,5.39322508]
[1760809801361,27.41450097,185.52,185.39,0.68]
[1760809801362,3.46286024,185.43,185.39,0.68]
[1760809801579,3.46286024,185.43,185.4,0.68]
[1760809802376,4.14286024,185.42,185.38,6.07429292]
[1760809802953,3.46286024,185.4,185.37,0.2]
[1760809803475,3.46286024,185.4,185.37,0.88]
[1760809803657,3.46286024,185.4,185.37,0.2]
[1760809804148,3.46286024,185.38,185.37,0.2]
[1760809804347,4.14286024,185.38,185.37,0.2]
[1760809805377,0.68,185.41,185.37,0.2]
[1760809805566,3.46286024,185.4,185.37,0.88]
[1760809807361,3.46286024,185.41,185.37,0.88]
[1760809807560,3.46286024,185.41,185.37,0.2]
[1760809807561,3.46286024,185.4,185.37,0.2]
[1760809807762,9.01780413,185.44,185.37,0.2]
[1760809807966,3.46286024,185.39,185.37,0.2]
[1760809809383,3.46286024,185.4,185.37,0.2]
[1760809809886,3.46286024,185.38,185.37,0.2]
[1760809810579,27.00286024,185.38,185.37,0.2]
[1760809812065,32.3971854,185.38,185.37,0.2]
[1760809813389,0.66,185.38,185.37,0.2]
[1760809813583,27.00286024,185.38,185.37,0.2]
[1760809814999,10.87647521,185.41,185.37,0.2]
[1760809815000,22.88,185.39,185.37,0.2]
[1760809815164,3.46286024,185.38,185.37,0.2]
[1760809816079,4.12286024,185.38,185.37,0.2]
[1760809818095,3.46286024,185.38,185.37,0.2]
[1760809821487,4.12286024,185.38,185.37,0.2]
[1760809821992,3.46286024,185.38,185.37,0.2]
[1760809822574,4.12286024,185.38,185.37,0.2]
[1760809822777,3.46286024,185.38,185.37,0.2]
[1760809825197,3.46286024,185.38,185.37,0.91]
[1760809825492,3.46286024,185.38,185.37,0.2]
[1760809825697,4.12286024,185.38,185.37,0.2]
[1760809826198,3.46286024,185.38,185.37,0.2]
[1760809828092,27.00286024,185.38,185.37,0.2]
[1760809831771,26.34286024,185.38,185.37,0.2]
[1760809832576,3.46286024,185.38,185.37,0.91]
[1760809834500,3.46286024,185.38,185.37,0.2]
[1760809835779,3.46286024,185.38,185.37,0.91]
[1760809836305,22.88,185.41,185.37,0.91]
[1760809836499,3.46286024,185.41,185.38,0.71]
[1760809836684,3.46286024,185.41,185.39,0.71]
[1760809837002,3.46286024,185.4,185.39,0.71]
[1760809837901,3.46286024,185.41,185.39,0.71]
[1760809839605,0.66,185.48,185.39,9.56684497]
[1760809839902,3.46286024,185.44,185.4,0.71]
[1760809840405,3.46286024,185.45,185.41,5.39345234]
[1760809840602,3.46286024,185.46,185.42,0.71]
[1760809840803,3.46286024,185.45,185.42,0.71]
[1760809841197,3.46286024,185.45,185.43,0.71]
[1760809841406,3.46286024,185.44,185.42,0.71]
[1760809841791,3.46286024,185.45,185.43,0.71]
[1760809844315,3.62239063,185.44,185.43,0.71]
[1760809845312,3.46286024,185.45,185.43,0.71]
[1760809846296,7.08525087,185.45,185.43,0.71]
[1760809846496,3.46286024,185.45,185.43,0.71]
[1760809846697,7.08525087,185.45,185.43,0.71]
[1760809846897,3.46286024,185.45,185.44,0.67]
[1760809848794,3.46286024,185.47,185.44,0.67]
[1760809849504,3.46286024,185.47,185.45,0.67]
[1760809850520,3.46286024,185.48,185.45,0.67]
[1760809850813,7.09166572,185.48,185.45,0.67]
[1760809850997,7.09166572,185.48,185.43,5.392859]
[1760809850998,3.46286024,185.46,185.43,5.392859]
[1760809851200,3.46286024,185.44,185.41,0.67]
[1760809851401,3.46286024,185.43,185.41,0.67]
[1760809851634,3.46286024,185.44,185.41,0.67]
[1760809852423,3.46286024,185.44,185.39,3.46286024]
[1760809852817,3.46286024,185.44,185.4,0.67]
[1760809853523,3.46286024,185.44,185.41,0.67]
[1760809853727,3.46286024,185.44,185.42,0.67]
[1760809853899,3.46286024,185.44,185.42,6.06308212]
[1760809854422,3.46286024,185.45,185.43,0.67]
[1760809854622,3.46286024,185.46,185.43,0.67]
[1760809855004,3.46286024,185.45,185.43,0.67]
[1760809856520,3.46286024,185.45,185.42,5.39308212]
[1760809856822,3.46286024,185.46,185.43,0.67]
[1760809857725,3.46286024,185.46,185.42,5.39308212]
[1760809857928,3.46286024,185.46,185.44,0.67]
[1760809858122,3.46286024,185.46,185.43,0.67]
[1760809858504,3.46286024,185.45,185.43,0.67]
[1760809859922,3.46286024,185.45,185.42,6.06308212]
[1760809861128,102.1,185.46,185.43,0.67]
[1760809861327,102.1,185.46,185.44,0.67]
[1760809861529,102.1,185.46,185.44,4.13286024]
[1760809861910,102.1,185.46,185.45,0.67]
[1760809863230,102.1,185.46,185.45,6.06228902]
[1760809863605,102.1,185.46,185.45,5.39228902]
[1760809865532,102.1,185.46,185.44,0.67]
[1760809865533,102.1,185.46,185.44,6.06252429]
[1760809866033,102.1,185.46,185.45,0.67]
[1760809866336,100.66,185.52,185.45,4.13286024]
[1760809866507,4.53521566,185.59,185.52,10.87647521]
[1760809866706,0.72,185.64,185.58,3.46286024]
[1760809866916,0.72,185.64,185.59,3.46286024]
[1760809867106,0.71,185.63,185.59,3.46286024]
[1760809867310,0.71,185.63,185.56,10.87647521]
[1760809867311,0.71,185.63,185.62,3.46286024]
[1760809867607,0.81,185.65,185.62,3.46286024]
[1760809867813,0.81,185.65,185.6,5.38793103]
[1760809867814,0.81,185.65,185.64,3.46286024]
[1760809868634,0.1,185.65,185.64,3.46286024]
[1760809869330,0.1,185.65,185.64,8.84963033]
[1760809870032,0.1,185.65,185.64,37.3433289]
[1760809872242,0.1,185.66,185.65,10.87647521]
[1760809872414,0.1,185.66,185.65,28.49369857]
[1760809874028,0.1,185.71,185.65,33.8801785]
[1760809874214,0.1,185.71,185.66,17.80219569]
[1760809874535,0.1,185.71,185.65,23.00370329]
[1760809874536,0.7,185.69,185.65,5.38647993]
[1760809874840,0.7,185.69,185.66,3.46286024]
[1760809875023,0.8,185.67,185.66,3.46286024]
[1760809876038,0.8,185.67,185.59,10.87647521]
[1760809876219,0.7,185.66,185.62,3.46286024]
[1760809876421,0.1,185.67,185.6,3.46286024]
[1760809876422,0.7,185.65,185.6,3.46286024]
[1760809876619,0.7,185.64,185.6,3.46286024]
[1760809877038,0.7,185.63,185.6,3.46286024]
[1760809877239,0.7,185.62,185.6,3.46286024]
[1760809877541,0.7,185.61,185.6,3.46286024]
[1760809877835,0.7,185.63,185.6,8.85079127]